Workbook

Sheet Sheet1
B5: # Units | D5: Address | F5: City | H5: Zip | I5: APN
B6: 3 | C6: 2048-52 N Highland St | F6: San Diego | H6: 92113 | I6: 551-563-17-00
I7: Middle Right
B8: Price | C8: Cap Ex/Basis | D8: GRM | F8: CAP Rate | H8: $ / Unit
B9: 1450000 | C9: 0 | D9: Current | E9: Market | F9: Current | G9: Market | H9: =B9/B6 -> 483333.3333
C10: =B9+C9 -> 1450000 | D10: =B9/E41 -> 13.19861642 | E10: =C10/F41 -> 11.55746852 | F10: =E45/B9 -> 0.05571218621 | G10: =F45/C10 -> 0.06614804828
B11: Price | C11: Avg | D11: Gross Sq. Ft. | F11: Parcel Size
B12: Per SF | C12: Unit SF | D12: (Approx.) | F12: (Approx.) | G12: Parking | H12: Yr. Built
B13: =B9/D13 -> 557.4778931 | C13: =D13/B6 -> 867 | D13: =873+862+866 -> 2601 | F13: 3600 | G13: 4 | H13: 2023
C14: Income Detail | G14: Annual Operating Expenses
B15: # of Units | C15: Type | D15: Rent | E15: Total | G15: (Estimated)
B16: Current Income | F16: Esti. Expenses | H16: Prop Mgmt
B17: 3 | C17: 2Br/2.5Ba | D17: $2695-3395 | E17: =2795+2695+3395 -> 8885 | F17: Utilities | G17: 500 | H17: OnSite Mgmt
F18: Water/Sewer | G18: =90*B6*12 -> 3240 | H18: Insurance | I18: 1500
F19: Contracted | G19: 900 | H19: License/Fees
F20: Trash | G20: 0 | H20: Pool
F21: Pest Control | G21: 0 | H21: Misc/Reserves | I21: 0
F22: Maintenance | G22: =500*B6 -> 1500 | H22: Taxes* | I22: =B9*0.0125114 -> 18141.53
F23: Total Annual Expenses | H23: =SUM(G16:G22)+SUM(I16:I22) -> 25781.53
C24: Parking | E24: TBD | F24: Expenses per: | G24: Est. Sq. Ft. | H24: =H23/D13 -> 9.912160707
B25: 3 | C25: RUBS | D25: 90 | E25: =B25*D25 -> 270 | G25: Unit | H25: =H23/B6 -> 8593.843333
B26: Total Monthly Income | E26: =SUM(E17:E25) -> 9155 | G26: % of GSI | H26: =H23/E41 -> 0.2346762243
B28: Market Income | G28: Market Expenses
B29: 3 | C29: 2Br/2.5Ba | D29: 3395 | E29: =D29*B29 -> 10185 | F29: Esti. Expenses | G29: =G16 -> 0 | H29: Prop Mgmt
F30: Utilities | G30: =G17 -> 500 | H30: OnSite Mgmt
F31: Water/Sewer | G31: 3240 | H31: Insurance | I31: =I18 -> 1500
F32: Contracted | G32: 900 | H32: License/Fees | I32: 0
F33: Trash | G33: 0 | H33: Pool | I33: 0
F34: Pest Control | G34: 0 | H34: Misc/Reserves | I34: 0
C35: Parking | E35: TBD | F35: Maintenance | G35: 1500 | H35: Taxes* | I35: 18141.53
B36: 3 | C36: RUBS | D36: 90 | E36: =B36*D36 -> 270 | F36: Total Annual Expenses | H36: =SUM(G29:G35)+SUM(I29:I35) -> 25781.53
B37: Total Monthly Income | E37: =SUM(E29:E36) -> 10455 | G37: % of GSI | H37: =H36/F41 -> 0.2054960147
B39: Annual Operating Proforma | G39: Financing Summary
E40: Current | F40: Market
B41: Gross Scheduled Income | E41: =E26*12 -> 109860 | F41: =E37*12 -> 125460 | G41: Down Payment | I41: =B9*I42 -> 362500
B42: Less: Vacancy Factor | D42: 0.03 | E42: =E41*D42 -> 3295.8 | F42: =F41*D42 -> 3763.8 | I42: 0.25
B43: Gross Operating Income | E43: =E41-E42 -> 106564.2 | F43: =F41-F42 -> 121696.2
B44: Less: Expenses | D44: =H26 -> 0.2346762243 | E44: =H23 -> 25781.53 | F44: =H36 -> 25781.53 | G44: =F44/F41 -> 0.2054960147
B45: Net Operating Income | E45: =E43-E44 -> 80782.67 | F45: =F43-F44 -> 95914.67 | G45: Proposed Financing: | I45: =B9-I41 -> 1087500
G46: Interest Rate: | I46: 0.065
B47: Less: 1st TD Payments | E47: =PMT(I46/12,I47*12,I45,0,0)*12 -> -82484.87707 | F47: =E47 -> -82484.87707 | G47: Amortized over: | I47: 30
G49: Debt Coverage Ratio:
B50: Pre-Tax Cash Flow | E50: =E45+E47 -> -1702.207066 | F50: =F45+F47 -> 13429.79293 | G50: Current: | I50: =E45/E47*-1 -> 0.9793634042
G51: Market: | I51: =F45/F47*-1 -> 1.162815214
B52: Cash On Cash Return | E52: =E50/I41 -> -0.00469574363 | F52: =F50/(I41+C9) -> 0.03704770465
B54: Principal Reduction | E54: =(-E47)-(I45*I46) -> 11797.37707 | F54: =(-F47)-(I45*I46) -> 11797.37707
B55: Earned Return | E55: =(E50+E54)/I41 -> 0.02784874483 | F55: =(F50+F54)/(I41+C9) -> 0.0695921931
B56: The Browar Group
B57: Florian Sighe | 619.894.3030 | florian@thebrowargroup.com
B59: The information contained herein has been obtained from sources believed reliable. While The Browar Group does not doubt its accuracy, we have not verified it, and make no guarantee, warranty or representation about it. It is your responsibility to independently confirm its accuracy and completeness. Any projections, opinions, assumptions, or estimates are used for example only and do not represent the current or future performance of the property. The value of this transaction to you depends on tax, financial, and legal advisors. You and your advisors should conduct a careful, independent, investigation of the property to determine to your satisfaction the suitability of the property to your needs.
